bitfinex-derivatives/quotes_ETHF0:USTF0_20251012
["timestamp","ask_amount","ask_price","bid_price","bid_amount"]
[1760278210430,0.0667,3822.4,3822.2,0.47083]
[1760278210636,0.0667,3822.2,3822.0,0.47085]
[1760278210930,0.0667,3822.1,3821.9,0.47087]
[1760278211237,6.41754038,3822.1,3822.0,0.47086]
[1760278211628,0.0667,3822.0,3821.4,0.8844]
[1760278211935,0.0667,3821.3,3821.2,0.473145]
[1760278212139,0.0667,3821.5,3821.3,0.47093]
[1760278212434,3.52017834,3821.3,3821.2,0.002195]
[1760278212628,40.8667,3821.3,3821.2,0.002195]
[1760278212828,43.83218836,3821.3,3821.2,0.002195]
[1760278213029,47.7566067,3821.3,3821.2,0.002195]
[1760278213232,52.2856667,3821.3,3821.2,0.002195]
[1760278214033,47.2856667,3821.3,3821.2,0.002195]
[1760278219339,47.7566067,3821.3,3821.2,0.473155]
[1760278220841,47.7566067,3821.3,3821.2,0.002195]
[1760278222139,52.7566067,3821.3,3821.2,0.002195]
[1760278222441,0.47107,3820.3,3819.9,0.8844]
[1760278222639,0.0645,3820.5,3819.8,1.85724763]
[1760278222845,9.53602137,3820.2,3820.0,0.4711]
[1760278223045,6.80513162,3820.4,3820.3,0.47107]
[1760278223232,3.40767502,3820.4,3820.3,0.47314186]
[1760278223432,0.53555,3820.4,3820.3,0.00207186]
[1760278223644,47.59135697,3820.4,3820.3,0.47314186]
[1760278224049,43.67212502,3820.4,3820.3,1.35754186]
[1760278224340,43.67212502,3820.4,3820.3,0.47314186]
[1760278224540,44.20767502,3820.4,3820.3,0.47314186]
[1760278224842,47.53257418,3820.4,3820.3,0.47314186]
[1760278225240,47.06152418,3820.4,3820.3,0.47314186]
[1760278225844,43.67212502,3820.4,3820.3,1.35754186]
[1760278227834,43.73662502,3820.4,3820.3,0.00207186]
[1760278228239,43.73662502,3820.4,3820.3,0.47314186]
[1760278228551,56.44696798,3820.4,3819.5,2.33070593]
[1760278228735,0.0645,3819.8,3819.1,6.42290593]
[1760278229047,3.2723,3819.6,3819.5,0.47117]
[1760278229241,44.0723,3819.6,3819.5,0.47117]
[1760278229443,50.26079963,3819.6,3819.5,0.47117]
[1760278229643,43.56945898,3819.6,3819.5,1.68857]
[1760278230734,40.8,3819.6,3819.5,6.68857]
[1760278230943,3.2078,3820.9,3820.8,0.47101]
[1760278231142,3.2723,3820.9,3820.5,0.8844]
[1760278231349,3.2723,3820.9,3820.8,0.47101]
[1760278231350,9.64606513,3820.9,3820.8,0.47101]
[1760278231746,6.43826513,3820.9,3820.8,0.47101]
[1760278232040,47.23826513,3820.9,3820.8,0.47101]
[1760278232241,43.7617273,3820.9,3820.8,1.35541]
[1760278232442,43.7617273,3820.9,3820.8,4.56321]
[1760278233647,43.7617273,3820.9,3820.8,3.2078]
[1760278233948,0.0531,3820.8,3820.7,0.47102]
[1760278234243,6.34964388,3820.8,3820.0,4.71855]
[1760278234444,6.40274388,3820.8,3820.6,0.47103]
[1760278234747,3.02007759,3820.8,3820.7,0.8368]
[1760278235347,40.8,3820.9,3820.8,1.30781]
[1760278235544,40.8,3820.9,3820.8,4.51561]
[1760278235744,3.2078,3821.8,3821.7,0.47089]
[1760278235943,3.2078,3821.8,3821.7,1.30769]
[1760278236246,2.74240182,3821.8,3821.7,1.30769]
[1760278236451,3.21064185,3822.2,3822.1,0.47085]
[1760278236751,46.75304367,3822.2,3822.1,1.30765]
[1760278236953,46.75304367,3822.2,3822.1,0.47085]
[1760278237246,0.0531,3822.1,3822.0,0.47086]
[1760278237748,6.29345818,3822.1,3822.0,0.47086]
[1760278241740,1.17715,3822.0,3821.4,0.47093]
[1760278241943,0.47095,3821.3,3821.0,1.86102932]
[1760278242144,3.73185,3821.3,3821.2,0.47096]
[1760278242549,9.96873152,3821.3,3821.2,0.47096]
[1760278242852,50.76873152,3821.3,3821.2,0.47096]
[1760278243251,0.47096,3821.2,3821.1,0.47096]
[1760278243748,11.31132405,3821.2,3820.5,1.86102932]
[1760278243944,11.31132405,3821.2,3820.0,4.73275]
[1760278243945,0.47105,3820.5,3820.3,0.47106]
[1760278244144,0.0527,3820.4,3820.3,0.47106]
[1760278244345,47.09224353,3820.4,3820.3,0.47106]
[1760278245342,43.71179301,3820.4,3820.3,8.22098932]
[1760278246049,43.71179301,3820.4,3820.3,6.35996]
[1760278247852,47.70426283,3820.4,3820.3,1.86056916]
[1760278248049,0.0527,3820.2,3820.1,0.47109]
[1760278248252,0.47107,3820.3,3820.0,3.2078]
[1760278248455,0.0527,3820.1,3820.0,3.67889]
[1760278248858,2.90914113,3820.1,3820.0,0.47109]
[1760278250648,40.8,3820.4,3820.3,0.47107]
[1760278250848,40.8,3820.4,3820.3,1.35997]
[1760278251059,43.77339287,3820.4,3820.3,3.22053916]
[1760278252149,43.77339287,3820.4,3820.3,1.35997]
[1760278252354,43.77339287,3820.4,3820.3,3.22053916]
[1760278253658,40.8,3820.4,3820.3,3.22053916]
[1760278254559,43.5768438,3820.4,3820.3,3.22053916]
[1760278254958,43.5768438,3820.4,3820.3,1.35997]
[1760278255362,43.6295438,3820.4,3820.3,0.47107]
[1760278255555,43.6295438,3820.4,3820.0,3.2078]
[1760278255556,43.6295438,3820.4,3820.2,0.47107]
[1760278255762,47.47861159,3820.4,3820.2,0.47108]
[1760278255962,0.0527,3820.3,3820.2,0.47108]
[1760278256370,6.29717892,3820.3,3820.2,0.47108]
[1760278256561,6.24447892,3820.3,3820.2,1.35998]
[1760278256957,6.24447892,3820.3,3820.2,0.47108]
[1760278257162,6.29717892,3820.3,3820.2,0.47108]
[1760278257364,6.24447892,3820.3,3820.2,0.47108]
[1760278257563,6.24447892,3820.3,3820.2,1.35998]
[1760278258158,6.24447892,3820.3,3820.2,0.47108]
[1760278258369,6.29717892,3820.3,3820.2,0.47108]
[1760278259870,47.09717892,3820.3,3820.2,0.47108]
[1760278260667,47.09717892,3820.3,3820.2,1.35998]
[1760278260869,47.09717892,3820.3,3820.2,0.47108]
[1760278261071,47.04447892,3820.3,3820.2,0.47108]
[1760278261274,47.04447892,3820.3,3820.2,1.35998]
[1760278261474,47.09717892,3820.3,3820.2,0.47108]
[1760278263874,47.23427892,3820.3,3820.2,0.47108]
[1760278264575,47.18157892,3820.3,3820.2,1.27818]
[1760278264971,0.1386,3820.0,3819.9,3.2078]
[1760278265172,0.1386,3820.0,3819.9,3.67892]
[1760278265371,2.99681531,3820.0,3819.9,3.67892]
[1760278265576,2.99681531,3820.0,3819.9,4.48602]
[1760278265777,2.96381531,3820.0,3819.9,4.48602]
[1760278265973,2.96381531,3820.0,3819.9,5.06152]
[1760278267178,2.96381531,3820.0,3819.9,5.63712]
[1760278267371,2.96381531,3820.0,3819.9,5.06152]
[1760278268176,2.96381531,3820.0,3819.9,3.2078]
[1760278268371,2.96381531,3820.0,3819.5,0.3472]
[1760278268372,0.1386,3819.9,3819.8,0.47112]
[1760278268670,0.1386,3819.4,3819.3,0.47118]
[1760278268876,0.1386,3819.4,3819.2,0.4712]
[1760278268877,0.1386,3819.3,3819.2,0.4712]
[1760278269179,3.12732992,3819.3,3819.2,0.4712]
[1760278271769,3.09432992,3819.3,3819.2,1.8538]
[1760278271974,3.09432992,3819.3,3819.2,1.2783]
[1760278272179,3.12732992,3819.3,3819.2,0.4712]
[1760278273277,0.0528,3819.1,3819.0,0.47122]
[1760278273481,0.1386,3819.0,3818.9,3.2078]
[1760278273779,3.01275897,3819.0,3818.9,3.2078]
[1760278274175,44.28398897,3819.0,3818.9,3.2078]
[1760278274581,44.28398897,3819.0,3818.9,0.47124]
[1760278274777,0.52407,3818.7,3818.6,0.47127]
[1760278275079,3.17167319,3818.7,3818.6,0.47127]
[1760278275876,3.64293319,3818.7,3818.6,0.47127]
[1760278276076,6.85073319,3818.7,3818.6,0.47127]
[1760278276376,0.1386,3818.3,3818.0,0.3486]
[1760278276679,0.1386,3817.8,3817.7,0.8071]
[1760278277276,2.87924413,3817.8,3817.7,0.8071]
[1760278277480,0.0858,3817.7,3817.6,0.4714]
[1760278277675,0.1386,3817.7,3817.6,0.4714]
[1760278277975,3.07511173,3817.7,3817.6,0.4714]
[1760278278979,0.4714,3817.6,3817.4,0.47142]
[1760278279181,0.1386,3817.5,3817.4,0.47142]
[1760278279378,3.02501929,3817.5,3817.4,0.47142]
[1760278279580,2.93921929,3817.5,3817.4,2.42962]
[1760278279882,2.99201929,3817.5,3817.4,1.85402]
[1760278280785,2.99201929,3817.5,3817.4,1.27852]
[1760278281685,2.99201929,3817.5,3817.4,1.85402]
[1760278282780,2.99201929,3817.5,3817.4,2.42962]
[1760278282977,2.93921929,3817.5,3817.4,2.42962]
[1760278283778,2.88641929,3817.5,3817.4,2.42962]
[1760278286381,40.8,3817.8,3817.7,0.47139]
[1760278286577,40.9056,3817.8,3817.7,5.63739]
[1760278286778,43.94198691,3817.8,3817.7,5.06179]
[1760278288585,43.94198691,3817.8,3817.7,5.63739]
[1760278288879,1.17799,3819.3,3818.7,1.27836]
[1760278288880,0.1056,3818.8,3818.7,1.27836]
[1760278289083,0.1386,3818.8,3818.7,1.27836]
[1760278289284,3.0419522,3818.8,3818.7,1.27836]
[1760278289886,43.8419522,3818.8,3818.7,1.27836]
[1760278290085,43.7363522,3818.8,3818.7,5.63726]
[1760278290486,40.8,3818.8,3818.7,5.63726]
[1760278291183,40.8,3818.8,3818.7,10.63726]
[1760278291387,3.2078,3819.8,3819.3,2.42939]
[1760278291692,2.9922745,3819.4,3819.3,2.42939]
[1760278292083,0.00261204,3819.4,3819.3,2.42939]
[1760278292285,40.80261204,3819.4,3819.3,2.42939]
[1760278293490,43.64886067,3819.4,3819.3,1.27829]
[1760278294983,1.17799,3819.3,3817.8,4.031]
[1760278295181,3.2078,3818.2,3817.4,3.2078]
[1760278295384,3.67913,3818.2,3817.8,0.47137]
[1760278295586,6.33256748,3818.1,3817.7,0.47139]
[1760278295881,0.0132,3818.0,3817.9,0.47136]
[1760278296087,6.80390748,3818.1,3817.5,0.8232]
[1760278296293,0.0132,3817.9,3817.5,0.8232]
[1760278296488,40.8,3817.6,3817.5,1.29461]
[1760278296888,43.74060604,3817.6,3817.5,1.29461]
[1760278297087,43.74060604,3817.6,3817.5,1.60881]
[1760278297283,3.2078,3818.6,3818.4,0.4713]
[1760278297590,6.21580631,3818.5,3818.3,0.8232]
[1760278297791,6.21580631,3818.5,3818.2,0.8232]
[1760278298295,40.8,3818.3,3818.2,1.29453]
[1760278298695,43.7031945,3818.3,3818.2,1.29453]
[1760278299897,0.00261204,3819.4,3819.3,0.47119]
[1760278300193,2.74536747,3819.4,3819.3,1.29439]
[1760278300492,43.54536747,3819.4,3819.3,1.29439]
[1760278300793,43.54536747,3819.4,3819.3,0.47119]
[1760278300989,43.55856747,3819.4,3819.3,0.47119]
[1760278301387,43.55856747,3819.4,3818.9,0.8232]
[1760278301693,43.55856747,3819.4,3818.7,3.2078]
[1760278301694,3.2078,3819.0,3818.0,5.53850593]
[1760278301889,0.0132,3818.3,3818.0,3.2078]
[1760278302087,0.0132,3818.3,3818.1,0.47134]
[1760278302390,2.96278191,3818.2,3818.1,0.47134]
[1760278302596,2.96278191,3818.2,3818.1,1.29454]
[1760278302989,43.76278191,3818.2,3818.1,1.29454]
[1760278303495,0.47119,3819.3,3818.7,0.8631]
[1760278303696,0.0197,3818.9,3818.4,0.4713]
[1760278303899,0.0197,3818.5,3818.4,0.4713]
[1760278304291,3.54981448,3818.5,3818.4,0.4713]
[1760278304492,40.94789461,3818.5,3818.4,1.3344]
[1760278307898,44.40850065,3818.5,3818.1,3.2078]
[1760278308200,44.40850065,3818.5,3818.4,0.4713]
[1760278308387,40.94789461,3818.5,3818.4,1.3344]
[1760278309001,0.02231204,3819.4,3819.3,0.47119]
[1760278309405,6.43436002,3819.4,3819.3,0.47119]
[1760278309900,47.23436002,3819.4,3819.3,0.47119]
[1760278312508,47.21466002,3819.4,3819.3,1.33429]
[1760278312694,43.81972535,3819.4,3819.3,1.33429]
[1760278313003,40.80261204,3819.4,3819.3,1.33429]
[1760278313703,43.70979048,3819.4,3819.3,0.47119]
[1760278314099,43.69009048,3819.4,3819.3,1.33429]
[1760278315797,43.69009048,3819.4,3819.3,0.47119]
[1760278316002,43.70979048,3819.4,3819.3,0.47119]
[1760278316900,0.0197,3819.3,3819.2,0.4712]
[1760278317213,6.33370967,3819.3,3819.2,0.4712]
[1760278319411,2.8811947,3819.3,3819.2,1.3343]
[1760278320504,2.9008947,3819.3,3819.2,0.4712]
[1760278320810,2.8811947,3819.3,3819.2,1.3343]
[1760278321311,2.9441947,3819.3,3819.2,1.3343]
[1760278321512,2.9441947,3819.3,3819.2,1.8712]
[1760278324010,2.9126947,3819.3,3819.2,1.8712]
[1760278324307,2.9281947,3819.3,3819.2,1.8712]
[1760278324913,2.9281947,3819.3,3819.2,1.3343]
[1760278325209,40.80261204,3819.4,3819.3,0.47119]
[1760278325504,43.58828205,3819.4,3819.3,2.40269]
[1760278326101,43.60378205,3819.4,3819.3,2.40269]
[1760278326305,43.57278205,3819.4,3819.3,2.40269]
[1760278326511,40.80261204,3819.4,3819.3,2.40269]
[1760278327206,40.80261204,3819.4,3819.3,4.73339593]
[1760278327910,3.2388,3820.4,3820.3,1.28317]
[1760278328114,2.8078,3820.9,3820.8,0.471]
[1760278328315,0.0097,3821.3,3821.2,0.47096]
[1760278328505,3.2078,3821.4,3821.3,0.47094]
[1760278329010,47.12180948,3821.4,3821.3,1.28501241]
[1760278329214,43.75389572,3821.4,3821.3,1.28501241]
[1760278331701,40.80189835,3821.4,3821.3,6.28501241]
[1760278333805,40.83289835,3821.4,3821.3,1.83651241]
[1760278334007,0.0097,3821.3,3820.7,3.2078]
[1760278334324,0.0097,3820.8,3820.1,0.8121]
[1760278334613,44.0175,3820.4,3820.2,0.47108]
[1760278335112,49.0175,3820.4,3819.6,0.8121]
[1760278335414,0.0097,3820.2,3820.0,0.4711]
[1760278335813,6.27116535,3820.1,3820.0,0.4711]
[1760278336417,6.27116535,3820.1,3820.0,1.6291]
[1760278336418,43.64061827,3820.1,3820.0,1.6291]
[1760278336614,43.65031827,3820.1,3820.0,0.4711]
[1760278337208,51.98282996,3820.1,3819.4,3.2078]
[1760278337413,0.0097,3819.7,3819.4,4.0199]
[1760278337613,0.0097,3819.7,3819.5,0.47116]
[1760278337910,0.48087,3819.5,3819.2,0.4712]
[1760278338216,6.18165162,3819.6,3819.3,0.47119]
[1760278338426,3.44199071,3819.4,3819.3,0.47119]
[1760278338625,0.0097,3819.5,3819.3,0.47119]
[1760278338626,6.12843596,3819.5,3819.3,0.47119]
[1760278338925,2.89237649,3819.4,3819.3,0.47119]
[1760278339213,3.4332118,3819.4,3819.3,1.28329]
[1760278339419,6.31588829,3819.5,3819.4,0.8121]
[1760278339718,3.2078,3820.4,3820.0,1.158]
[1760278339912,3.2078,3820.4,3819.8,0.47113]
[1760278340117,2.85795655,3820.0,3819.9,1.28321]
[1760278341615,2.85795655,3820.0,3819.9,0.8121]
[1760278342421,2.85795655,3820.0,3819.6,0.47114]
[1760278342617,2.86765655,3820.0,3819.8,0.47113]
[1760278343422,2.85795655,3820.0,3819.9,0.8121]
[1760278343809,0.0097,3819.9,3819.5,1.158]
[1760278344013,0.0097,3819.9,3819.8,0.47113]
[1760278344217,41.2711,3820.1,3820.0,1.2832]
[1760278344218,40.8,3820.1,3820.0,1.2832]
[1760278344417,40.8,3820.1,3820.0,1.6291]
[1760278344617,43.77278004,3820.1,3820.0,1.6291]
[1760278345123,40.8,3820.1,3820.0,1.6291]
[1760278347219,40.8,3820.1,3820.0,3.48422776]
[1760278351229,40.8,3820.1,3820.0,4.60362776]
[1760278351629,40.8155,3820.1,3820.0,4.60362776]
[1760278352223,40.8155,3820.1,3820.0,2.7485]
[1760278352927,3.2078,3821.8,3821.3,0.7971]
[1760278353226,0.4709,3821.7,3821.6,0.4709]
[1760278353432,6.23890975,3821.9,3821.7,0.4709]
[1760278353625,3.2078,3822.2,3821.5,0.47091]
[1760278353933,0.4709,3821.7,3821.6,0.47091]
[1760278354231,3.87732736,3821.7,3821.6,0.47091]
[1760278354530,47.56739812,3821.7,3821.6,0.47091]
[1760278354730,0.47091,3821.6,3821.5,0.00255011]
[1760278355228,6.8166389,3821.6,3821.5,0.00255011]
[1760278355430,47.6166389,3821.6,3821.5,0.00255011]
[1760278358330,47.6166389,3821.6,3821.5,1.27057011]
[1760278358531,47.1457289,3821.6,3821.5,1.27057011]
[1760278358731,47.1457289,3821.6,3821.5,1.60487011]
[1760278359333,47.1457289,3821.6,3821.5,0.47347011]
[1760278359532,47.6166389,3821.6,3821.5,0.47347011]
[1760278360236,47.1457289,3821.6,3821.5,0.47347011]
[1760278360534,47.6166389,3821.6,3821.5,0.47347011]
[1760278361233,47.1457289,3821.6,3821.5,0.47347011]
[1760278361833,47.1457289,3821.6,3821.5,2.13547011]
[1760278362232,43.71366379,3821.6,3821.5,2.68627011]
[1760278362428,43.15169379,3821.6,3821.5,6.60487011]
[1760278362634,0.00229962,3822.2,3822.1,1.26795]
[1760278363435,0.00229962,3822.2,3822.1,9.47575]
[1760278363637,40.80229962,3822.2,3822.1,9.47575]
[1760278364933,0.022,3822.8,3822.1,9.47575]
[1760278364934,0.022,3822.8,3822.7,1.26787]
[1760278365435,40.822,3822.8,3822.7,8.12640175]
[1760278366027,40.82466421,3822.8,3822.7,8.12640175]
[1760278366237,40.82466421,3822.8,3822.7,6.26787]
[1760278367135,0.00266421,3822.8,3822.7,6.26787]
[1760278367337,0.8153,3824.1,3824.0,0.47061]
[1760278367535,0.8153,3824.4,3824.3,0.47057]
[1760278367832,0.8153,3824.3,3823.7,3.2078]
[1760278368037,0.8153,3824.2,3823.7,3.2078]
[1760278368238,41.6153,3824.0,3823.9,0.47062]
[1760278368430,41.6179418,3824.0,3823.9,0.47291197]
[1760278368632,48.28664373,3824.0,3823.9,0.00229197]
[1760278369137,53.28664373,3824.0,3823.9,0.00229197]
[1760278370942,0.8153,3822.7,3822.6,3.2078]
[1760278371131,1.28606,3822.8,3822.7,0.47077]
[1760278371638,0.8153,3822.3,3822.2,3.2078]
[1760278371941,3.55605484,3822.3,3822.2,0.00304698]
[1760278372532,2.74075484,3822.3,3822.2,4.06664698]
[1760278372735,3.55605484,3822.3,3822.2,3.21084698]
[1760278372941,0.8153,3822.3,3822.2,3.21084698]
[1760278373139,0.8153,3822.7,3822.6,0.47078]
[1760278373644,3.83916039,3822.7,3822.6,0.47078]
[1760278373837,3.02386039,3822.7,3822.6,0.47078]
[1760278374039,3.02386039,3822.7,3822.6,1.32658]
[1760278374446,3.83916039,3822.7,3822.6,1.32658]
[1760278375055,3.83916039,3822.7,3822.6,3.67858]
[1760278377655,3.83916039,3822.7,3822.6,4.53438]
[1760278378354,3.02386039,3822.7,3822.6,4.53438]
[1760278379356,3.83916039,3822.7,3822.6,0.47078]
[1760278380558,3.83916039,3822.7,3822.6,1.32658]
[1760278380947,3.83916039,3822.7,3822.2,3.21084698]
[1760278380948,0.47082,3822.3,3822.2,0.00304698]
[1760278381154,1.28612,3822.3,3822.2,0.00304698]
[1760278381354,7.43560058,3822.3,3822.2,0.00304698]
[1760278381564,48.23560058,3822.3,3822.2,0.00304698]
[1760278383759,48.23560058,3822.3,3821.3,1.85239527]
[1760278383760,1.25843,3821.4,3821.3,3.2078]
[1760278383962,1.17723,3821.8,3821.0,0.47098]
[1760278383963,0.7875,3821.1,3821.0,0.47098]
[1760278384260,3.58774448,3821.1,3821.0,0.47098]
[1760278384460,44.38774448,3821.1,3821.0,1.32598]
[1760278384664,43.60235037,3821.1,3821.0,1.32598]
[1760278385063,40.80210589,3821.1,3821.0,6.64808]
[1760278385961,40.80210589,3821.1,3821.0,8.50047527]
[1760278386564,40.80210589,3821.1,3821.0,6.64808]
[1760278386961,0.7875,3821.0,3820.9,3.2078]
[1760278387159,0.7875,3821.0,3820.9,3.67879]
[1760278387462,3.62794929,3821.0,3820.9,3.67879]
[1760278389560,0.7875,3820.7,3820.6,0.47102]
[1760278390060,1.54754,3820.5,3820.4,3.2078]
[1760278390258,1.54754,3820.5,3819.9,0.47112]
[1760278390259,1.0752,3820.0,3819.9,0.47112]
[1760278390563,44.76973707,3820.0,3819.9,0.47112]
[1760278392461,1.17953589,3821.1,3821.0,0.47098]
[1760278392462,0.00210589,3821.1,3821.0,0.47098]
[1760278392658,0.00210589,3821.1,3821.0,4.85588]
[1760278392959,0.00210589,3821.1,3821.0,9.85588]
[1760278393466,40.80210589,3821.1,3821.0,9.85588]
[1760278394761,3.2078,3822.4,3822.1,0.47083]
[1760278395059,3.67861,3822.4,3822.1,0.47084]
[1760278395257,6.36938202,3822.3,3822.1,0.47084]
[1760278395457,0.7875,3822.2,3822.1,0.47084]
[1760278395858,47.78618096,3822.2,3822.1,0.47305149]
[1760278396965,43.55212118,3822.2,3822.1,4.53585149]
[1760278398071,40.80283535,3822.2,3822.1,4.53585149]
[1760278398572,3.2078,3823.2,3823.1,0.47072]
[1760278398866,4.13445214,3823.1,3823.0,0.47073]
[1760278399071,7.02290581,3823.1,3823.0,0.47073]
[1760278399265,11.23540581,3823.1,3822.2,5.06449451]
[1760278399466,0.7875,3822.3,3822.1,0.00221149]
[1760278399766,7.15102202,3822.2,3822.1,0.47305149]
[1760278399971,7.15102202,3822.2,3822.1,0.00221149]
[1760278401975,7.15102202,3822.2,3822.1,0.47306149]
[1760278402866,7.62185202,3822.2,3822.1,0.47306149]
[1760278403063,0.7875,3821.9,3821.5,1.85669451]
[1760278403268,1.25845,3821.3,3821.1,3.2078]
[1760278403473,0.7875,3821.2,3821.1,3.2078]
[1760278403677,47.73637278,3821.2,3821.1,3.2078]
[1760278403975,0.47101,3820.8,3820.7,3.2078]
[1760278404167,0.7875,3820.8,3820.7,3.21097576]
[1760278404362,7.17766373,3820.8,3820.7,3.21097576]
[1760278404576,47.97766373,3820.8,3820.7,3.21097576]
[1760278404775,47.97766373,3820.8,3820.7,0.00317576]
[1760278406675,44.60587566,3820.8,3820.7,0.00317576]
[1760278406869,43.81837566,3820.8,3820.7,0.85817576]
[1760278407169,44.60587566,3820.8,3820.7,0.00317576]
[1760278407975,43.81837566,3820.8,3820.7,0.85817576]
[1760278408169,44.60587566,3820.8,3820.7,0.85817576]
[1760278408368,44.60587566,3820.8,3820.7,0.00317576]
[1760278408569,43.81837566,3820.8,3820.7,5.85817576]
[1760278408770,40.8,3820.8,3820.7,5.85817576]
[1760278409477,40.8,3820.8,3820.7,6.32919576]
[1760278411882,43.65064296,3820.8,3820.7,1.32919576]
[1760278413577,40.8,3820.8,3820.7,1.32919576]
[1760278415284,40.8,3820.8,3820.7,3.65673547]
[1760278416078,48.35685822,3820.8,3820.7,1.82453746]
[1760278416284,0.8298,3820.6,3820.5,0.47104]
[1760278416782,3.72976543,3820.6,3820.5,0.47104]
[1760278416984,44.52976543,3820.6,3820.5,1.24844]
[1760278417180,44.52976543,3820.6,3820.5,0.47104]
[1760278417577,43.69996543,3820.6,3820.5,3.11087194]
[1760278417882,43.69996543,3820.6,3820.5,1.58784]
[1760278418090,0.8298,3821.6,3821.3,0.47093]
[1760278418280,3.2078,3821.7,3821.6,0.47091]
[1760278418483,44.0078,3821.7,3821.6,0.47091]
[1760278418684,50.38111314,3821.7,3821.5,0.47092]
[1760278418877,0.8298,3821.6,3821.5,0.47092]
[1760278419283,3.77466261,3821.6,3821.5,0.47092]
[1760278419485,4.24557261,3821.6,3821.5,0.47092]
[1760278420192,0.281,3821.5,3821.1,3.2078]
[1760278420385,0.8298,3821.4,3820.9,1.86243646]
[1760278420692,0.8298,3821.2,3821.1,0.47097]
[1760278420989,0.8298,3821.2,3821.1,1.24837]
[1760278421184,3.72194218,3821.2,3821.1,1.24837]
[1760278421385,44.52194218,3821.2,3821.1,0.47097]
[1760278421785,43.69214218,3821.2,3821.1,0.47097]
[1760278422089,43.69214218,3821.2,3821.1,1.24837]
[1760278422285,43.69214218,3821.2,3821.1,6.31860646]
[1760278422493,40.8,3821.2,3821.1,4.45617]
[1760278425393,43.78641022,3821.2,3821.1,4.45617]
[1760278426893,44.59291022,3821.2,3821.1,3.2078]
[1760278427095,48.46060307,3821.2,3821.1,3.2078]
[1760278427490,0.47103,3820.6,3820.5,1.86390895]
[1760278427795,4.48533,3820.6,3820.5,1.86390895]
[1760278428088,48.13026988,3820.6,3820.5,2.33494895]
[1760278428292,47.65923988,3820.6,3820.5,2.33494895]
[1760278428493,43.64493988,3820.6,3820.5,1.58724]
[1760278428793,40.8,3820.6,3820.5,1.58724]
[1760278430092,40.8,3820.6,3820.5,3.91740752]
[1760278431195,40.8,3820.6,3820.5,1.58724]
[1760278431792,4.0143,3822.0,3820.8,1.17751]
[1760278432001,4.0143,3822.0,3821.9,1.27237]
[1760278432297,7.00083796,3822.0,3821.9,3.1382566]
[1760278432598,7.00083796,3822.0,3821.9,2.3367566]
[1760278432789,47.80083796,3822.0,3821.9,2.3367566]
[1760278433197,47.80083796,3822.0,3821.9,3.1382566]
[1760278433398,46.99433796,3822.0,3821.9,3.1382566]
[1760278433989,43.78653796,3822.0,3821.9,1.27237]
[1760278435788,43.78653796,3822.0,3821.9,0.47087]
[1760278435789,44.59303796,3822.0,3821.9,0.47087]
[1760278436198,44.59303796,3822.0,3821.9,1.27237]
[1760278437791,43.78653796,3822.0,3821.9,1.27237]
[1760278437994,40.8,3822.0,3821.9,1.27237]
[1760278438789,42.6587,3822.0,3821.9,0.47087]
[1760278438995,45.54946142,3822.0,3821.9,0.47087]
[1760278439403,45.54946142,3822.0,3821.9,2.33502074]
[1760278439599,44.74296142,3822.0,3821.9,1.81907]
[1760278439800,40.8,3822.0,3821.9,5.56237]
[1760278439997,40.8,3822.0,3821.9,10.56237]
[1760278440493,0.00271334,3822.3,3822.2,2.35453]
[1760278440808,3.2078,3823.3,3823.2,1.27221]
[1760278441099,44.0078,3823.3,3823.2,1.27221]
[1760278441499,40.8,3823.3,3823.2,3.13281492]
[1760278441699,40.80277063,3823.3,3823.2,6.27221]
[1760278441907,6.3e-07,3823.3,3823.2,6.27221]
[1760278442096,6.3e-07,3823.3,3823.2,1.27221]
[1760278444003,40.8,3824.1,3823.2,1.27221]
[1760278444004,40.8,3824.1,3824.0,0.80731]
[1760278444194,40.8,3824.1,3824.0,1.63961]
[1760278444594,0.8314,3823.9,3823.5,0.47067]
[1760278444795,47.02694427,3824.1,3823.7,0.8323]
[1760278445003,40.80327621,3824.1,3823.9,0.47061]
[1760278445303,2.99274526,3824.0,3823.9,1.30291]
[1760278446195,40.80327621,3824.1,3824.0,1.169]
[1760278448898,46.90144331,3824.1,3824.0,0.8323]
[1760278449099,46.90144331,3824.1,3824.0,1.169]
[1760278449306,43.69364331,3824.1,3824.0,1.169]
[1760278449510,40.80327621,3824.1,3824.0,4.3768]
[1760278450001,40.80327621,3824.1,3824.0,1.63961]
[1760278450608,40.80327621,3824.1,3824.0,4.84741]
[1760278451703,0.00327621,3824.1,3824.0,9.84741]
[1760278453399,0.00327621,3824.1,3824.0,4.84741]
[1760278454606,0.00327621,3824.1,3824.0,1.30291]
[1760278458914,0.57477621,3824.1,3824.0,1.86341]
[1760278459214,5.22199846,3824.1,3824.0,1.30291]
[1760278459710,4.75139846,3824.1,3824.0,1.30291]
[1760278460105,4.75139846,3824.1,3824.0,1.86341]
[1760278460313,3.91999846,3824.1,3824.0,2.72831]
[1760278461416,2.41272,3824.0,3823.9,0.8323]
[1760278461611,1.58134,3823.8,3823.7,1.3928]
[1760278461810,2.41275,3823.7,3823.1,3.2078]
[1760278462005,2.41275,3823.7,3822.7,1.3928]
[1760278462006,1.58146,3822.8,3822.7,1.3928]
[1760278462202,42.38146,3822.8,3822.7,1.3928]
[1760278462607,42.38146,3822.8,3822.2,0.00247699]
[1760278462608,48.81108527,3822.8,3822.2,0.00247699]
[1760278462813,1.30222,3822.3,3822.2,0.00247699]
[1760278463218,4.25735197,3822.3,3822.2,0.00247699]
[1760278463619,45.05735197,3822.3,3822.2,0.00247699]
[1760278464807,0.47091,3821.6,3821.4,3.2078]
[1760278465113,0.47089,3821.8,3821.6,0.8323]
[1760278465511,0.47091,3821.6,3821.1,0.8323]
[1760278465719,0.47091,3821.6,3821.3,0.47094]
[1760278465917,2.95394184,3821.5,3821.4,0.8323]
[1760278466713,3.67866,3822.0,3821.6,0.4709]
[1760278467020,3.2078,3822.4,3822.2,0.8323]
[1760278467412,0.8314,3822.8,3822.2,0.8323]
[1760278467413,3.2078,3822.9,3822.2,0.8323]
[1760278467610,43.78201904,3822.3,3822.2,0.8323]